{"text_format":"3","workbook":"xlsx","n_sheets":4,"sheets":["Табло","Активи","Пасиви","изчисления"],"not_rendered":{"charts":4,"external_links":1,"defined_names":4},"read":"whole","date_system":"1900"}

{"sheet":"Табло","index":0,"n_rows":16,"n_cols":8,"rows_kept":16}
[]
[null,"ТАБЛО",{"$nulls":4},"РЕЗЮМЕ НА НЕТНА СТОЙНОСТ"," "]
{"$rows_empty":8}
[null,{"$f":"НетнаСтойност","v":{"v":159600,"d":"159,600 лв."}},null,{"$f":"ОбщоАктиви","v":{"v":380800,"d":"380,800 лв."}},null,null,{"$f":"ОбщоПасиви","v":{"v":221200,"d":"221,200 лв."}}]
[null,"НЕТНА СТОЙНОСТ",null,"ОБЩО АКТИВИ",null,null,"ОБЩО ПАСИВИ"]
[{"$nulls":3},"ПАРИЧНИ СРЕДСТВА",null,null,"НЕОБЕЗПЕЧЕНИ"]
[{"$nulls":3},"ИНВЕСТИЦИИ",null,null,"ОБЕЗПЕЧЕНИ"]
[{"$nulls":3},"ПЕНСИОНИРАНЕ"]
[{"$nulls":3},"ЛИЧНИ"]

{"sheet":"Активи","index":1,"n_rows":24,"n_cols":10,"rows_kept":24,"merged":[[11,1,12,1],[13,1,14,1],[14,2,14,4],[14,6,14,8],[25,2,25,4],[25,6,25,8]]}
[]
[null,"АКТИВИ",{"$nulls":5},"РЕЗЮМЕ НА НЕТНА СТОЙНОСТ",null," "]
[]
[null,null," ","ПАРИЧНИ СРЕДСТВА","СТОЙНОСТ",null," ","ЛИЧНИ","СТОЙНОСТ"]
[{"$nulls":3},"КАСОВА НАЛИЧНОСТ",{"v":2000,"d":"2,000"},null,null,"ОСНОВНО ЖИЛИЩЕ",{"v":233000,"d":"233,000"}]
[{"$nulls":3},"РАЗПЛАЩАТЕЛНИ СМЕТКИ",{"v":2500,"d":"2,500"},null,null,"ВТОРО ЖИЛИЩЕ"]
[{"$nulls":3},"СПЕСТОВНИ СМЕТКИ",{"v":4000,"d":"4,000"},null,null,"КОЛЕКЦИИ"]
[{"$nulls":3},"СМЕТКИ ПАРИЧЕН ПАЗАР",{"v":3300,"d":"3,300"},null,null,"АВТОМОБИЛИ",{"v":32000,"d":"32,000"}]
[{"$nulls":3},"СМЕТКИ ВЪВ ФОНДОВЕ ПАРИЧЕН ПАЗАР",{"v":7000,"d":"7,000"},null,null,"ДОМАШНА МЕБЕЛИРОВКА",{"v":10000,"d":"10,000"}]
[{"$nulls":3},"ДЕПОЗИТИ",{"$nulls":3},"КОЖА И БИЖУТА"]
[{"$nulls":3},"СЪКРОВИЩНИ БОНОВЕ",{"$nulls":3},"ДРУГИ АКТИВИ",{"v":1500,"d":"1,500"}]
[null,{"$f":"ОбщоАктиви","v":{"v":380800,"d":"380,800 лв."}},null,"ПАРИЧНА СТОЙНОСТ НА ЗАСТРАХОВКА ЖИВОТ",{"v":24500,"d":"24,500"}]
[{"$nulls":3},"МЕЖДИННА СУМА",{"$f":"SUBTOTAL(109,тблПаричниСредства[СТОЙНОСТ])","v":{"v":43300,"d":"43,300"}},null,null,"МЕЖДИННА СУМА",{"$f":"SUBTOTAL(109,тблЛични[СТОЙНОСТ])","v":{"v":276500,"d":"276,500"}}]
[null,"ОБЩО АКТИВИ"]
[]
[]
[null,null," ","ИНВЕСТИЦИИ","СТОЙНОСТ",null," ","ПЕНСИОНИРАНЕ","СТОЙНОСТ"]
[{"$nulls":3},"АКЦИИ",{"v":15000,"d":"15,000"},null,null,"ПЕНСИЯ"]
[{"$nulls":3},"ОБЛИГАЦИИ",{"$nulls":3},"ЛИЧНИ ПЕНСИОННИ СМЕТКИ"]
[{"$nulls":3},"ИНВЕСТИЦИИ ВЪВ ВЗАИМНИ ФОНДОВЕ",{"$nulls":3},"ПЕНСИОННИ СМЕТКИ С ОТЛОЖЕНО ДАНЪЧНО ОБЛАГАНЕ"]
[{"$nulls":3},"ДЯЛОВЕ В ПАРТНЬОРСТВА",{"$nulls":3},"401K",{"v":46000,"d":"46,000"}]
[{"$nulls":3},"ДРУГИ ИНВЕСТИЦИИ",{"$nulls":3},"Опростен пенсионен план за служители"]
[{"$nulls":7},"План за дялова собственост на служители"]
[{"$nulls":3},"МЕЖДИННА СУМА",{"$f":"SUBTOTAL(109,тблИнвестиции[СТОЙНОСТ])","v":{"v":15000,"d":"15,000"}},null,null,"МЕЖДИННА СУМА",{"$f":"SUBTOTAL(109,тблПенсиониране[СТОЙНОСТ])","v":{"v":46000,"d":"46,000"}}]

{"sheet":"Пасиви","index":2,"n_rows":14,"n_cols":10,"rows_kept":14,"merged":[[11,1,12,1],[13,1,14,1]]}
[]
[null,"ПАСИВИ",{"$nulls":5},"РЕЗЮМЕ НА НЕТНА СТОЙНОСТ",null," "]
[]
[null,null," ","НЕОБЕЗПЕЧЕНИ","ДЪЛЖИМО",null," ","ОБЕЗПЕЧЕНИ","ДЪЛЖИМО"]
[{"$nulls":3},"КРЕДИТНИ КАРТИ",{"v":1200,"d":"1,200"},null,null,"Автомобилни заеми",{"v":14500,"d":"14,500"}]
[{"$nulls":3},"СМЕТКИ ЗА ОТЛОЖЕНО ПЛАЩАНЕ",{"v":3000,"d":"3,000"},null,null,"Заеми за превозни средства за живеене"]
[{"$nulls":3},"СТУДЕНТСКИ ЗАЕМИ",{"v":17500,"d":"17,500"},null,null,"Заеми за техника"]
[{"$nulls":3},"ИЗДРЪЖКА",{"$nulls":3},"Ипотеки на жилища",{"v":144000,"d":"144,000"}]
[{"$nulls":3},"ИЗДРЪЖКА НА ДЕЦА",{"$nulls":3},"Заеми, обезпечени с жилища",{"v":21000,"d":"21,000"}]
[{"$nulls":3},"ДАНЪЧНИ ЗАДЪЛЖЕНИЯ",{"v":8000,"d":"8,000"},null,null,"Други заеми"]
[{"$nulls":3},"ДРУГИ",{"v":6000,"d":"6,000"},null,null,"Данъчни задължения",{"v":4000,"d":"4,000"}]
[null,{"$f":"ОбщоПасиви","v":{"v":221200,"d":"221,200 лв."}},{"$nulls":5},"Други",{"v":2000,"d":"2,000"}]
[{"$nulls":3},"МЕЖДИННА СУМА",{"$f":"SUBTOTAL(109,тблНеобезпечени[ДЪЛЖИМО])","v":{"v":35700,"d":"35,700"}},null,null,"МЕЖДИННА СУМА",{"$f":"SUBTOTAL(109,тблОбезпечени[ДЪЛЖИМО])","v":{"v":185500,"d":"185,500"}}]
[null,"ОБЩО АКТИВИ"]

{"sheet":"изчисления","index":3,"n_rows":23,"n_cols":3,"rows_kept":23,"hidden":true}
[]
[null,"*** Този лист трябва да остане скрит ***"]
{"$rows_empty":8}
[null,{"$f":"тблПаричниСредства[[#Headers],[ПАРИЧНИ СРЕДСТВА]]","v":"ПАРИЧНИ СРЕДСТВА"},{"$f":"SUM(тблПаричниСредства[СТОЙНОСТ])","v":{"v":43300,"d":"43,300 лв."}}]
[null,{"$f":"тблИнвестиции[[#Headers],[СТОЙНОСТ]]","v":"СТОЙНОСТ"},{"$f":"SUM(тблИнвестиции[СТОЙНОСТ])","v":{"v":15000,"d":"15,000 лв."}}]
[null,{"$f":"тблПенсиониране[[#Headers],[ПЕНСИОНИРАНЕ]]","v":"ПЕНСИОНИРАНЕ"},{"$f":"SUM(тблПенсиониране[СТОЙНОСТ])","v":{"v":46000,"d":"46,000 лв."}}]
[null,{"$f":"тблЛични[[#Headers],[ЛИЧНИ]]","v":"ЛИЧНИ"},{"$f":"SUM(тблЛични[СТОЙНОСТ])","v":{"v":276500,"d":"276,500 лв."}}]
[null,"Общо активи",{"$f":"SUM(тблПаричниСредства[СТОЙНОСТ],тблИнвестиции[СТОЙНОСТ],тблПенсиониране[СТОЙНОСТ],тблЛични[СТОЙНОСТ])","v":{"v":380800,"d":"380,800 лв."}}]
[]
[]
[null,{"$f":"тблНеобезпечени[[#Headers],[НЕОБЕЗПЕЧЕНИ]]","v":"НЕОБЕЗПЕЧЕНИ"},{"$f":"SUM(тблНеобезпечени[ДЪЛЖИМО])","v":{"v":35700,"d":"35,700 лв."}}]
[null,{"$f":"тблОбезпечени[[#Headers],[ОБЕЗПЕЧЕНИ]]","v":"ОБЕЗПЕЧЕНИ"},{"$f":"SUM(тблОбезпечени[ДЪЛЖИМО])","v":{"v":185500,"d":"185,500 лв."}}]
[null,"Общо пасиви",{"$f":"SUM(тблНеобезпечени[ДЪЛЖИМО],тблОбезпечени[ДЪЛЖИМО])","v":{"v":221200,"d":"221,200 лв."}}]
[]
[]
[null,"Нетна стойност",{"$f":"C15-C20","v":{"v":159600,"d":"159,600 лв."}}]